{"text_format":"1","workbook":"xlsx","n_sheets":4,"sheets":["Arkusz","Twoje aktualne promocje","Slownik","Twoje zakonczone promocje"],"not_rendered":{"charts":0,"images":0,"macros":1,"external_links":0,"defined_names":0,"comments":2,"pivot_tables":0},"unopened":[],"bounds":{"document_bytes":16777216,"sheet_cells":100000,"rows_first":2000,"rows_last":500,"rows_between":2000,"halvings":0,"cell_chars":16384,"cell_head_chars":4096},"cells_cut":0,"cells_raw":0,"read":"whole","date_system":"1900"}

{"sheet":"Arkusz","index":0,"n_rows":3,"n_cols":2,"rows_kept":3,"cut":false,"hidden":false,"merged":[[0,0,0,1],[1,0,1,1]]}
[""]
["Aby przejść do Twoich aktualnych promocji, musisz włączyć obsługę makra. Kliknij 'Włącz zawartość'.\n\n\nMakra są wykorzystane do ustawienia prawidłowych warunków promocji w zależności od 'Kluczowej daty'\n(np. daty zawarcia umowy z bankiem)."]
[null,"ZarabiajzKanapy.pl"]

{"sheet":"Twoje aktualne promocje","index":1,"n_rows":6,"n_cols":12,"rows_kept":6,"cut":false,"hidden":true,"merged":[[5,0,5,6],[5,7,5,11]]}
["Imię właściciela konta","Konto","Bank","Link do opisu promocji","Nagroda","Kluczowa data","Data zamknięcia","Zalety konta","Opłaty za kartę","Opłaty za konto","Warunki do spełnienia","Pozostałe warunki do spelnienia"]
["","Konto osobiste","VeloBank","600 zl za konto osobiste velobank wrzesien 2023",600,"2023-10-05","","• Darmowe konto","7 zł / *0 zł\n* Wykonaj 5 transakcji kartą lub BLIKiem za zakupy","0 zł","Październik:  🛒 5x zapłać kartą/BLIKiem| 🛒 Wydaj min. 1000zł\nListopad:       🛒 5x zapłać kartą/BLIKiem| 🛒 Wydaj min. 1000zł\nGrudzień:      🛒 5x zapłać kartą/BLIKiem| 🛒 Wydaj min. 1000zł\nStyczen:         🛒 5x zapłać kartą/BLIKiem| 🛒 Wydaj min. 1000zł\nLuty:               🛒 5x zapłać kartą/BLIKiem| 🛒 Wydaj min. 1000zł\nMarzec:          🛒 5x zapłać kartą/BLIKiem| 🛒 Wydaj min. 1000zł\n","Brak"]
["","Konto osobiste","Nest Bank","400 zl za konto osobiste nest bank lipiec 2023",400,"2023-09-06","","• Darmowe konto\n• Darmowa karta\n• Darmowe przelewy wewnętrzne z konta oszczędnościowego\n• 100 zł z programu poleceń","0 zł","0 zł","Październik:  ⬇️ Zapewnij 2000zł wpływu| 💳 Wydaj łącznie 1000zł kartą| 🛒 3x zapłać kartą / BLIKiem\nListopad:       ⬇️ Zapewnij 2000zł wpływu| 💳 Wydaj łącznie 1000zł kartą| 🛒 3x zapłać kartą / BLIKiem\nGrudzień:      ⬇️ Zapewnij 2000zł wpływu| 💳 Wydaj łącznie 1000zł kartą| 🛒 3x zapłać kartą / BLIKiem\nStyczeń:         ⬇️ Zapewnij 2000zł wpływu| 💳 Wydaj łącznie 1000zł kartą| 🛒 3x zapłać kartą / BLIKiem\nLuty:               ⬇️ Zapewnij 2000zł wpływu| 💳 Wydaj łącznie 1000zł kartą| 🛒 3x zapłać kartą / BLIKiem\nMarzec:          ⬇️ Zapewnij 2000zł wpływu| 💳 Wydaj łącznie 1000zł kartą| 🛒 3x zapłać kartą / BLIKiem\nKwiecień:       ⬇️ Zapewnij 2000zł wpływu| 💳 Wydaj łącznie 1000zł kartą| 🛒 3x zapłać kartą / BLIKiem\nMaj:                ⬇️ Zapewnij 2000zł wpływu| 💳 Wydaj łącznie 1000zł kartą| 🛒 3x zapłać kartą / BLIKiem","Brak"]
["","Konto osobiste","BNP Paribas","435 zl od bnp paribas konto osobiste lipiec 2023",435,"2023-07-20","","• Karta w programie MasterCard - Bezcenne Chwile\n• Darmowe konto","7zł / *0 zł\n* Zapłać 3x kartą oraz zaloguj się do aplikacji mobilnej banku","0 zł","Lipiec:            💳 Nadaj PIN karcie\nSierpień:        📱 4x Zaloguj się do aplikacji| ➡️ Wykonaj przelew 350zł| 💳 Zapłać 3x kartą|\nWrzesień:      📱 4x Zaloguj się do aplikacji| ➡️ Wykonaj przelew 350zł| 💳 Zapłać 3x kartą|\n","Brak"]
[]
[null,null,null,null,null,null,null,"ZarabiajzKanapy.pl"]

{"sheet":"Slownik","index":2,"n_rows":4,"n_cols":17,"rows_kept":4,"cut":false,"hidden":true,"merged":[]}
[]
[{"$f":"IF(ISNUMBER('Twoje aktualne promocje'!F2),CONCATENATE(PROPER(TEXT(B2,\"mmmm\")),C2,PROPER(TEXT(D2,\"mmmm\")),E2,PROPER(TEXT(F2,\"mmmm\")),G2,PROPER(TEXT(H2,\"mmmm\")),I2,PROPER(TEXT(J2,\"mmmm\")),K2,PROPER(TEXT(L2,\"mmmm\")),M2),\"Najpierw podaj Twoją datę aktywacji konta z przedziału\nod 2023-09-01 do 2023-11-30\n(w formacie rrrr-mm-dd)\")","v":"Październik:  🛒 5x zapłać kartą/BLIKiem| 🛒 Wydaj min. 1000zł\nListopad:       🛒 5x zapłać kartą/BLIKiem| 🛒 Wydaj min. 1000zł\nGrudzień:      🛒 5x zapłać kartą/BLIKiem| 🛒 Wydaj min. 1000zł\nStyczen:         🛒 5x zapłać kartą/BLIKiem| 🛒 Wydaj min. 1000zł\nLuty:               🛒 5x zapłać kartą/BLIKiem| 🛒 Wydaj min. 1000zł\nMarzec:          🛒 5x zapłać kartą/BLIKiem| 🛒 Wydaj min. 1000zł\n"},{"$f":"CHOOSE(MONTH(EDATE('Twoje aktualne promocje'!F2,0)),\"Styczen:\"&REPT(\" \", 9),\"Luty:\"&REPT(\" \", 15),\"Marzec:\"&REPT(\" \", 10),\"Kwiecień:\"&REPT(\" \", 7),\"Maj:\"&REPT(\" \", 16),\"Czerwiec:\"&REPT(\" \", 7),\"Lipiec:\"&REPT(\" \", 12),\"Sierpień:\"&REPT(\" \", 8),\"Wrzesień:\"&REPT(\" \", 6),\"Październik:\"&REPT(\" \", 2),\"Listopad:\"&REPT(\" \", 7),\"grudzień:\"&REPT(\" \", 6),\"Błąd :(\")","v":"Październik:  "},{"$f":"CONCATENATE(\"🛒 5x zapłać kartą/BLIKiem| 🛒 Wydaj min. 1000zł\", CHAR(10))","v":"🛒 5x zapłać kartą/BLIKiem| 🛒 Wydaj min. 1000zł\n"},{"$f":"CHOOSE(MONTH(EDATE('Twoje aktualne promocje'!F2,1)),\"Styczen:\"&REPT(\" \", 9),\"Luty:\"&REPT(\" \", 15),\"Marzec:\"&REPT(\" \", 10),\"Kwiecień:\"&REPT(\" \", 7),\"Maj:\"&REPT(\" \", 16),\"Czerwiec:\"&REPT(\" \", 7),\"Lipiec:\"&REPT(\" \", 12),\"Sierpień:\"&REPT(\" \", 8),\"Wrzesień:\"&REPT(\" \", 6),\"Październik:\"&REPT(\" \", 2),\"Listopad:\"&REPT(\" \", 7),\"grudzień:\"&REPT(\" \", 6),\"Błąd :(\")","v":"Listopad:       "},{"$f":"CONCATENATE(\"🛒 5x zapłać kartą/BLIKiem| 🛒 Wydaj min. 1000zł\", CHAR(10))","v":"🛒 5x zapłać kartą/BLIKiem| 🛒 Wydaj min. 1000zł\n"},{"$f":"CHOOSE(MONTH(EDATE('Twoje aktualne promocje'!F2,2)),\"Styczen:\"&REPT(\" \", 9),\"Luty:\"&REPT(\" \", 15),\"Marzec:\"&REPT(\" \", 10),\"Kwiecień:\"&REPT(\" \", 7),\"Maj:\"&REPT(\" \", 16),\"Czerwiec:\"&REPT(\" \", 7),\"Lipiec:\"&REPT(\" \", 12),\"Sierpień:\"&REPT(\" \", 8),\"Wrzesień:\"&REPT(\" \", 6),\"Październik:\"&REPT(\" \", 2),\"Listopad:\"&REPT(\" \", 7),\"grudzień:\"&REPT(\" \", 6),\"Błąd :(\")","v":"grudzień:      "},{"$f":"CONCATENATE(\"🛒 5x zapłać kartą/BLIKiem| 🛒 Wydaj min. 1000zł\", CHAR(10))","v":"🛒 5x zapłać kartą/BLIKiem| 🛒 Wydaj min. 1000zł\n"},{"$f":"CHOOSE(MONTH(EDATE('Twoje aktualne promocje'!F2,3)),\"Styczen:\"&REPT(\" \", 9),\"Luty:\"&REPT(\" \", 15),\"Marzec:\"&REPT(\" \", 10),\"Kwiecień:\"&REPT(\" \", 7),\"Maj:\"&REPT(\" \", 16),\"Czerwiec:\"&REPT(\" \", 7),\"Lipiec:\"&REPT(\" \", 12),\"Sierpień:\"&REPT(\" \", 8),\"Wrzesień:\"&REPT(\" \", 6),\"Październik:\"&REPT(\" \", 2),\"Listopad:\"&REPT(\" \", 7),\"grudzień:\"&REPT(\" \", 6),\"Błąd :(\")","v":"Styczen:         "},{"$f":"CONCATENATE(\"🛒 5x zapłać kartą/BLIKiem| 🛒 Wydaj min. 1000zł\", CHAR(10))","v":"🛒 5x zapłać kartą/BLIKiem| 🛒 Wydaj min. 1000zł\n"},{"$f":"CHOOSE(MONTH(EDATE('Twoje aktualne promocje'!F2,4)),\"Styczen:\"&REPT(\" \", 9),\"Luty:\"&REPT(\" \", 15),\"Marzec:\"&REPT(\" \", 10),\"Kwiecień:\"&REPT(\" \", 7),\"Maj:\"&REPT(\" \", 16),\"Czerwiec:\"&REPT(\" \", 7),\"Lipiec:\"&REPT(\" \", 12),\"Sierpień:\"&REPT(\" \", 8),\"Wrzesień:\"&REPT(\" \", 6),\"Październik:\"&REPT(\" \", 2),\"Listopad:\"&REPT(\" \", 7),\"grudzień:\"&REPT(\" \", 6),\"Błąd :(\")","v":"Luty:               "},{"$f":"CONCATENATE(\"🛒 5x zapłać kartą/BLIKiem| 🛒 Wydaj min. 1000zł\", CHAR(10))","v":"🛒 5x zapłać kartą/BLIKiem| 🛒 Wydaj min. 1000zł\n"},{"$f":"CHOOSE(MONTH(EDATE('Twoje aktualne promocje'!F2,5)),\"Styczen:\"&REPT(\" \", 9),\"Luty:\"&REPT(\" \", 15),\"Marzec:\"&REPT(\" \", 10),\"Kwiecień:\"&REPT(\" \", 7),\"Maj:\"&REPT(\" \", 16),\"Czerwiec:\"&REPT(\" \", 7),\"Lipiec:\"&REPT(\" \", 12),\"Sierpień:\"&REPT(\" \", 8),\"Wrzesień:\"&REPT(\" \", 6),\"Październik:\"&REPT(\" \", 2),\"Listopad:\"&REPT(\" \", 7),\"grudzień:\"&REPT(\" \", 6),\"Błąd :(\")","v":"Marzec:          "},{"$f":"CONCATENATE(\"🛒 5x zapłać kartą/BLIKiem| 🛒 Wydaj min. 1000zł\", CHAR(10))","v":"🛒 5x zapłać kartą/BLIKiem| 🛒 Wydaj min. 1000zł\n"}]
[{"$f":"IF(ISNUMBER('Twoje aktualne promocje'!F3),CONCATENATE(PROPER(TEXT(B3,\"mmmm\")),C3,PROPER(TEXT(D3,\"mmmm\")),E3,PROPER(TEXT(F3,\"mmmm\")),G3,PROPER(TEXT(H3,\"mmmm\")),I3,PROPER(TEXT(J3,\"mmmm\")),K3,PROPER(TEXT(L3,\"mmmm\")),M3,PROPER(TEXT(N3,\"mmmm\")),O3,PROPER(TEXT(P3,\"mmmm\")),Q3),\"Najpierw podaj Twoją datę zawarcia umowy z bankiem z przedziału\nod 2023-07-01 do 2023-09-30\n(w formacie rrrr-mm-dd)\")","v":"Najpierw podaj Twoją datę zawarcia umowy z bankiem z przedziału\nod 2023-07-01 do 2023-09-30\n(w formacie rrrr-mm-dd)"},{"$f":"CHOOSE(MONTH(EDATE('Twoje aktualne promocje'!F3,1)),\"Styczen:\"&REPT(\" \", 9),\"Luty:\"&REPT(\" \", 15),\"Marzec:\"&REPT(\" \", 10),\"Kwiecień:\"&REPT(\" \", 7),\"Maj:\"&REPT(\" \", 16),\"Czerwiec:\"&REPT(\" \", 7),\"Lipiec:\"&REPT(\" \", 12),\"Sierpień:\"&REPT(\" \", 8),\"Wrzesień:\"&REPT(\" \", 6),\"Październik:\"&REPT(\" \", 2),\"Listopad:\"&REPT(\" \", 7),\"grudzień:\"&REPT(\" \", 6),\"Błąd :(\")","v":"Październik:  "},{"$f":"CONCATENATE(\"⬇️ Zapewnij 2000zł wpływu| 💳 Wydaj łącznie 1000zł kartą| 🛒 3x zapłać kartą / BLIKiem\", CHAR(10))","v":"⬇️ Zapewnij 2000zł wpływu| 💳 Wydaj łącznie 1000zł kartą| 🛒 3x zapłać kartą / BLIKiem\n"},{"$f":"CHOOSE(MONTH(EDATE('Twoje aktualne promocje'!F3,2)),\"Styczen:\"&REPT(\" \", 9),\"Luty:\"&REPT(\" \", 15),\"Marzec:\"&REPT(\" \", 10),\"Kwiecień:\"&REPT(\" \", 7),\"Maj:\"&REPT(\" \", 16),\"Czerwiec:\"&REPT(\" \", 7),\"Lipiec:\"&REPT(\" \", 12),\"Sierpień:\"&REPT(\" \", 8),\"Wrzesień:\"&REPT(\" \", 6),\"Październik:\"&REPT(\" \", 2),\"Listopad:\"&REPT(\" \", 7),\"grudzień:\"&REPT(\" \", 6),\"Błąd :(\")","v":"Listopad:       "},{"$f":"CONCATENATE(\"⬇️ Zapewnij 2000zł wpływu| 💳 Wydaj łącznie 1000zł kartą| 🛒 3x zapłać kartą / BLIKiem\", CHAR(10))","v":"⬇️ Zapewnij 2000zł wpływu| 💳 Wydaj łącznie 1000zł kartą| 🛒 3x zapłać kartą / BLIKiem\n"},{"$f":"CHOOSE(MONTH(EDATE('Twoje aktualne promocje'!F3,3)),\"Styczen:\"&REPT(\" \", 9),\"Luty:\"&REPT(\" \", 15),\"Marzec:\"&REPT(\" \", 10),\"Kwiecień:\"&REPT(\" \", 7),\"Maj:\"&REPT(\" \", 16),\"Czerwiec:\"&REPT(\" \", 7),\"Lipiec:\"&REPT(\" \", 12),\"Sierpień:\"&REPT(\" \", 8),\"Wrzesień:\"&REPT(\" \", 6),\"Październik:\"&REPT(\" \", 2),\"Listopad:\"&REPT(\" \", 7),\"grudzień:\"&REPT(\" \", 6),\"Błąd :(\")","v":"grudzień:      "},{"$f":"CONCATENATE(\"⬇️ Zapewnij 2000zł wpływu| 💳 Wydaj łącznie 1000zł kartą| 🛒 3x zapłać kartą / BLIKiem\", CHAR(10))","v":"⬇️ Zapewnij 2000zł wpływu| 💳 Wydaj łącznie 1000zł kartą| 🛒 3x zapłać kartą / BLIKiem\n"},{"$f":"CHOOSE(MONTH(EDATE('Twoje aktualne promocje'!F3,4)),\"Styczen:\"&REPT(\" \", 9),\"Luty:\"&REPT(\" \", 15),\"Marzec:\"&REPT(\" \", 10),\"Kwiecień:\"&REPT(\" \", 7),\"Maj:\"&REPT(\" \", 16),\"Czerwiec:\"&REPT(\" \", 7),\"Lipiec:\"&REPT(\" \", 12),\"Sierpień:\"&REPT(\" \", 8),\"Wrzesień:\"&REPT(\" \", 6),\"Październik:\"&REPT(\" \", 2),\"Listopad:\"&REPT(\" \", 7),\"grudzień:\"&REPT(\" \", 6),\"Błąd :(\")","v":"Styczen:         "},{"$f":"CONCATENATE(\"⬇️ Zapewnij 2000zł wpływu| 💳 Wydaj łącznie 1000zł kartą| 🛒 3x zapłać kartą / BLIKiem\", CHAR(10))","v":"⬇️ Zapewnij 2000zł wpływu| 💳 Wydaj łącznie 1000zł kartą| 🛒 3x zapłać kartą / BLIKiem\n"},{"$f":"CHOOSE(MONTH(EDATE('Twoje aktualne promocje'!F3,5)),\"Styczen:\"&REPT(\" \", 9),\"Luty:\"&REPT(\" \", 15),\"Marzec:\"&REPT(\" \", 10),\"Kwiecień:\"&REPT(\" \", 7),\"Maj:\"&REPT(\" \", 16),\"Czerwiec:\"&REPT(\" \", 7),\"Lipiec:\"&REPT(\" \", 12),\"Sierpień:\"&REPT(\" \", 8),\"Wrzesień:\"&REPT(\" \", 6),\"Październik:\"&REPT(\" \", 2),\"Listopad:\"&REPT(\" \", 7),\"grudzień:\"&REPT(\" \", 6),\"Błąd :(\")","v":"Luty:               "},{"$f":"CONCATENATE(\"⬇️ Zapewnij 2000zł wpływu| 💳 Wydaj łącznie 1000zł kartą| 🛒 3x zapłać kartą / BLIKiem\", CHAR(10))","v":"⬇️ Zapewnij 2000zł wpływu| 💳 Wydaj łącznie 1000zł kartą| 🛒 3x zapłać kartą / BLIKiem\n"},{"$f":"CHOOSE(MONTH(EDATE('Twoje aktualne promocje'!F3,6)),\"Styczen:\"&REPT(\" \", 9),\"Luty:\"&REPT(\" \", 15),\"Marzec:\"&REPT(\" \", 10),\"Kwiecień:\"&REPT(\" \", 7),\"Maj:\"&REPT(\" \", 16),\"Czerwiec:\"&REPT(\" \", 7),\"Lipiec:\"&REPT(\" \", 12),\"Sierpień:\"&REPT(\" \", 8),\"Wrzesień:\"&REPT(\" \", 6),\"Październik:\"&REPT(\" \", 2),\"Listopad:\"&REPT(\" \", 7),\"grudzień:\"&REPT(\" \", 6),\"Błąd :(\")","v":"Marzec:          "},{"$f":"CONCATENATE(\"⬇️ Zapewnij 2000zł wpływu| 💳 Wydaj łącznie 1000zł kartą| 🛒 3x zapłać kartą / BLIKiem\", CHAR(10))","v":"⬇️ Zapewnij 2000zł wpływu| 💳 Wydaj łącznie 1000zł kartą| 🛒 3x zapłać kartą / BLIKiem\n"},{"$f":"CHOOSE(MONTH(EDATE('Twoje aktualne promocje'!F3,7)),\"Styczen:\"&REPT(\" \", 9),\"Luty:\"&REPT(\" \", 15),\"Marzec:\"&REPT(\" \", 10),\"Kwiecień:\"&REPT(\" \", 7),\"Maj:\"&REPT(\" \", 16),\"Czerwiec:\"&REPT(\" \", 7),\"Lipiec:\"&REPT(\" \", 12),\"Sierpień:\"&REPT(\" \", 8),\"Wrzesień:\"&REPT(\" \", 6),\"Październik:\"&REPT(\" \", 2),\"Listopad:\"&REPT(\" \", 7),\"grudzień:\"&REPT(\" \", 6),\"Błąd :(\")","v":"Kwiecień:       "},{"$f":"CONCATENATE(\"⬇️ Zapewnij 2000zł wpływu| 💳 Wydaj łącznie 1000zł kartą| 🛒 3x zapłać kartą / BLIKiem\", CHAR(10))","v":"⬇️ Zapewnij 2000zł wpływu| 💳 Wydaj łącznie 1000zł kartą| 🛒 3x zapłać kartą / BLIKiem\n"},{"$f":"CHOOSE(MONTH(EDATE('Twoje aktualne promocje'!F3,8)),\"Styczen:\"&REPT(\" \", 9),\"Luty:\"&REPT(\" \", 15),\"Marzec:\"&REPT(\" \", 10),\"Kwiecień:\"&REPT(\" \", 7),\"Maj:\"&REPT(\" \", 16),\"Czerwiec:\"&REPT(\" \", 7),\"Lipiec:\"&REPT(\" \", 12),\"Sierpień:\"&REPT(\" \", 8),\"Wrzesień:\"&REPT(\" \", 6),\"Październik:\"&REPT(\" \", 2),\"Listopad:\"&REPT(\" \", 7),\"grudzień:\"&REPT(\" \", 6),\"Błąd :(\")","v":"Maj:                "},{"$f":"CONCATENATE(\"⬇️ Zapewnij 2000zł wpływu| 💳 Wydaj łącznie 1000zł kartą| 🛒 3x zapłać kartą / BLIKiem\", CHAR(10))","v":"⬇️ Zapewnij 2000zł wpływu| 💳 Wydaj łącznie 1000zł kartą| 🛒 3x zapłać kartą / BLIKiem\n"}]
[{"$f":"IF(ISNUMBER('Twoje aktualne promocje'!F4),CONCATENATE(PROPER(TEXT(B4,\"mmmm\")),C4,PROPER(TEXT(D4,\"mmmm\")),E4,PROPER(TEXT(F4,\"mmmm\")),G4),\"Najpierw podaj Twoją datę nadania PINu do karty z przedziału\nod 2023-07-12 do 2023-10-31\n(w formacie rrrr-mm-dd)\")","v":"Lipiec:            💳 Nadaj PIN karcie\nSierpień:        📱 4x Zaloguj się do aplikacji| ➡️ Wykonaj przelew 350zł| 💳 Zapłać 3x kartą|\nWrzesień:      📱 4x Zaloguj się do aplikacji| ➡️ Wykonaj przelew 350zł| 💳 Zapłać 3x kartą|\n"},{"$f":"CHOOSE(MONTH(EDATE('Twoje aktualne promocje'!F4,0)),\"Styczen:\"&REPT(\" \", 9),\"Luty:\"&REPT(\" \", 15),\"Marzec:\"&REPT(\" \", 10),\"Kwiecień:\"&REPT(\" \", 7),\"Maj:\"&REPT(\" \", 16),\"Czerwiec:\"&REPT(\" \", 7),\"Lipiec:\"&REPT(\" \", 12),\"Sierpień:\"&REPT(\" \", 8),\"Wrzesień:\"&REPT(\" \", 6),\"Październik:\"&REPT(\" \", 2),\"Listopad:\"&REPT(\" \", 7),\"grudzień:\"&REPT(\" \", 6),\"Błąd :(\")","v":"Lipiec:            "},{"$f":"CONCATENATE(\"💳 Nadaj PIN karcie\", CHAR(10))","v":"💳 Nadaj PIN karcie\n"},{"$f":"CHOOSE(MONTH(EDATE('Twoje aktualne promocje'!F4,1)),\"Styczen:\"&REPT(\" \", 9),\"Luty:\"&REPT(\" \", 15),\"Marzec:\"&REPT(\" \", 10),\"Kwiecień:\"&REPT(\" \", 7),\"Maj:\"&REPT(\" \", 16),\"Czerwiec:\"&REPT(\" \", 7),\"Lipiec:\"&REPT(\" \", 12),\"Sierpień:\"&REPT(\" \", 8),\"Wrzesień:\"&REPT(\" \", 6),\"Październik:\"&REPT(\" \", 2),\"Listopad:\"&REPT(\" \", 7),\"grudzień:\"&REPT(\" \", 6),\"Błąd :(\")","v":"Sierpień:        "},{"$f":"CONCATENATE(\"📱 4x Zaloguj się do aplikacji| ➡️ Wykonaj przelew 350zł| 💳 Zapłać 3x kartą|\", CHAR(10))","v":"📱 4x Zaloguj się do aplikacji| ➡️ Wykonaj przelew 350zł| 💳 Zapłać 3x kartą|\n"},{"$f":"CHOOSE(MONTH(EDATE('Twoje aktualne promocje'!F4,2)),\"Styczen:\"&REPT(\" \", 9),\"Luty:\"&REPT(\" \", 15),\"Marzec:\"&REPT(\" \", 10),\"Kwiecień:\"&REPT(\" \", 7),\"Maj:\"&REPT(\" \", 16),\"Czerwiec:\"&REPT(\" \", 7),\"Lipiec:\"&REPT(\" \", 12),\"Sierpień:\"&REPT(\" \", 8),\"Wrzesień:\"&REPT(\" \", 6),\"Październik:\"&REPT(\" \", 2),\"Listopad:\"&REPT(\" \", 7),\"grudzień:\"&REPT(\" \", 6),\"Błąd :(\")","v":"Wrzesień:      "},{"$f":"CONCATENATE(\"📱 4x Zaloguj się do aplikacji| ➡️ Wykonaj przelew 350zł| 💳 Zapłać 3x kartą|\", CHAR(10))","v":"📱 4x Zaloguj się do aplikacji| ➡️ Wykonaj przelew 350zł| 💳 Zapłać 3x kartą|\n"}]

{"sheet":"Twoje zakonczone promocje","index":3,"n_rows":7,"n_cols":9,"rows_kept":7,"cut":false,"hidden":false,"merged":[]}
["SUMA NAGRÓD:",{"$f":"SUM(ZakonczonePromocje[Nagroda])","v":2580}]
["Imię właściciela konta","Konto","Bank","Link do opisu promocji","Nagroda","Data zamknięcia","Zalety konta","Opłaty za kartę","Opłaty za konto"]
["","Konto osobiste","Alior Bank",{"$f":"HYPERLINK(\"https://zarabiajzkanapy.pl/450-zl-od-alior-banku-czerwiec-2023\",\"450 zl od alior banku czerwiec 2023\")","v":"450 zl od alior banku czerwiec 2023"},450,"","• 1% moneyback za płatności mobilne \n• 4% na koncie oszczędnościowym\n","5 zł / *0 zł \n Wydaj kartą min 300 zł\n","10 zł / *0 zł \n* Dla osób powyżej 26 roku życia: wpływ 1500 zł. Dla osób młodszych prowadzenie konta jest darmowe\n"]
["","Konto osobiste","mBank",{"$f":"HYPERLINK(\"https://zarabiajzkanapy.pl/450-zl-za-konto-osobiste-od-mbanku-czerwiec-2023\",\"450 zl za konto osobiste od mbanku czerwiec 2023\")","v":"450 zl za konto osobiste od mbanku czerwiec 2023"},450,"","• Darmowe konto\n• Program poleceń\n• 8% na koncie oszczednosciowym przez 3 miesiące\n• darmowe wypłaty za granicą\n","7zł / *0 zł\n* Wydaj kartą 350 zł\n","0 zł\n"]
["","Konto osobiste","PKO",{"$f":"HYPERLINK(\"https://zarabiajzkanapy.pl/600-zl-za-konto-osobiste-pko-bp-sierpien-2023\",\"600 zl za konto osobiste pko bp sierpien 2023\")","v":"600 zl za konto osobiste pko bp sierpien 2023"},200,"","• Program poleceń\n• Liczne rabaty i promocje dla obecnych klientów na https://www.pkobp.pl/promocje\n","10zł / *0 zł\n* Wykonaj 5 transakcji kartą lub BLIKiem\n","0 zł\n"]
["","Karta kredytowa","Citi Handlowy",{"$f":"HYPERLINK(\"https://zarabiajzkanapy.pl/720-zl-za-karte-kredytowa-motokarta-w-citibanku-sierpien-2023\",\"720 zl za karte kredytowa motokarta w citibanku sierpien 2023\")","v":"720 zl za karte kredytowa motokarta w citibanku sierpien 2023"},720,"","• Darmowa karta\n• Spłata bez odsetek do 56 dni\n","0 zł\n","0 zł\n"]
["","Karta kredytowa","Santander Consumer Bank",{"$f":"HYPERLINK(\"https://zarabiajzkanapy.pl/760-zl-za-karte-kredytowa-santander-sierpien-2023\",\"760 zl za karte kredytowa santander sierpien 2023\")","v":"760 zl za karte kredytowa santander sierpien 2023"},760,"","• Zwrot za zakupy do 360 zł rocznie (max 30 zł miesięcznie): 3% za korzystanie z restauracji, barów, kawiarni; 1% za paliwo i inne zakupy na stacjach paliw; 5% za korzystanie z samodzielnych myjni samochodowych\n","6,90 zł / *0 zł\n* Wydaj kartą 1000 zł\n","0 zł\n"]